bitfinex-derivatives/quotes_BTCF0:USTF0_20240829
["timestamp","ask_amount","ask_price","bid_price","bid_amount"]
[1724939052463,0.1262,60330.0,60323.0,0.3608]
[1724939052666,0.05085616,60331.0,60323.0,0.3608]
[1724939052872,0.05085616,60331.0,60328.0,0.3608]
[1724939053179,0.13370316,60331.0,60328.0,0.44365]
[1724939053377,0.3257,60332.0,60329.0,0.082849]
[1724939053675,0.3257,60332.0,60328.0,0.3608]
[1724939054276,0.082849,60329.0,60328.0,0.3608]
[1724939054471,0.6865,60332.0,60323.0,0.38405212]
[1724939054672,0.082854,60326.0,60323.0,0.443657]
[1724939054976,0.0508575,60331.0,60323.0,0.3608]
[1724939055183,0.08309372,60333.0,60323.0,0.3608]
[1724939055380,0.00024872,60333.0,60327.0,0.082851]
[1724939055681,0.082847,60331.0,60329.0,0.082849]
[1724939055880,0.00024872,60333.0,60332.0,0.082845]
[1724939056476,0.082849,60329.0,60328.0,0.3608]
[1724939056676,0.082849,60329.0,60323.0,0.3608]
[1724939056877,0.082856,60325.0,60323.0,0.3608]
[1724939057179,0.082856,60324.0,60323.0,0.3608]
[1724939057376,0.082859,60322.0,60321.0,0.00024872]
[1724939057780,0.082855,60325.0,60323.0,0.082857]
[1724939058278,0.082859,60322.0,60321.0,0.00024872]
[1724939058578,0.443659,60322.0,60321.0,0.00024872]
[1724939058970,0.082859,60322.0,60321.0,0.08310872]
[1724939059474,0.082859,60322.0,60321.0,0.00024872]
[1724939059681,0.165718,60322.0,60321.0,0.00024872]
[1724939059990,0.443659,60322.0,60321.0,0.00024872]
[1724939060180,0.8608,60329.0,60324.0,0.082855]
[1724939060386,0.082855,60325.0,60324.0,0.082855]
[1724939060588,0.082851,60328.0,60326.0,0.082853]
[1724939060885,0.082852,60327.0,60326.0,0.082853]
[1724939061075,0.5,60334.0,60328.0,0.08285]
[1724939061271,0.082849,60329.0,60328.0,0.08285]
[1724939061683,0.082852,60327.0,60326.0,0.3608]
[1724939062083,0.082848,60331.0,60328.0,0.08285]
[1724939062378,0.5,60334.0,60329.0,0.082848]
[1724939062379,0.082848,60330.0,60329.0,0.082848]
[1724939063283,0.8608,60336.0,60326.0,0.3608]
[1724939063479,0.08309272,60333.0,60326.0,0.3608]
[1724939063876,0.00024872,60333.0,60332.0,0.082845]
[1724939064486,0.082845,60332.0,60326.0,0.3608]
[1724939064788,0.082852,60327.0,60326.0,0.3608]
[1724939064990,0.082852,60327.0,60311.0,0.16588]
[1724939064991,0.165718,60322.0,60321.0,0.00024872]
[1724939065179,1.45812,60322.0,60311.0,0.082873]
[1724939065379,0.082865,60318.0,60312.0,0.3608]
[1724939065597,0.082866,60317.0,60312.0,0.3608]
[1724939065786,0.05085202,60321.0,60312.0,0.3608]
[1724939065979,0.082868,60316.0,60313.0,0.08287]
[1724939066181,0.082868,60316.0,60314.0,0.08287]
[1724939067494,0.05110074,60321.0,60312.0,0.3608]
[1724939067495,0.082869,60315.0,60312.0,0.3608]
[1724939067690,0.3608,60314.0,60308.0,0.00024872]
[1724939067892,0.13372402,60313.0,60308.0,0.00024872]
[1724939068391,0.13372402,60313.0,60309.0,0.082876]
[1724939068586,0.13372402,60313.0,60310.0,0.082875]
[1724939069088,0.05085202,60313.0,60309.0,0.3608]
[1724939069287,0.04985202,60316.0,60315.0,0.082869]
[1724939069780,0.18104656,60319.0,60315.0,0.082869]
[1724939070097,0.18104656,60318.0,60315.0,0.082869]
[1724939070285,0.18104656,60318.0,60317.0,0.082866]
[1724939070684,0.00024872,60321.0,60320.0,0.082862]
[1724939071788,0.00024872,60321.0,60320.0,1.623884]
[1724939071988,0.3257,60327.0,60326.0,0.082853]
[1724939072189,0.18067147,60328.0,60327.0,0.082852]
[1724939072492,0.18067147,60331.0,60326.0,0.3608]
[1724939072698,0.082852,60327.0,60326.0,0.3608]
[1724939073080,0.082859,60323.0,60320.0,0.36104872]
[1724939073288,0.003,60327.0,60322.0,0.082859]
[1724939073594,0.003,60327.0,60324.0,0.082855]
[1724939073785,0.003,60327.0,60326.0,0.001]
[1724939074089,0.003,60327.0,60326.0,0.083853]
[1724939074696,0.003,60327.0,60326.0,0.527506]
[1724939075084,0.0025961,60327.0,60326.0,1.869239]
[1724939075286,0.00024872,60333.0,60332.0,0.16569]
[1724939075586,0.00024872,60333.0,60332.0,0.88649]
[1724939075788,0.00024872,60333.0,60332.0,1.98373]
[1724939075984,0.05084718,60343.0,60332.0,1.98373]
[1724939076288,0.18067147,60349.0,60348.0,0.082823]
[1724939076493,0.18067147,60363.0,60348.0,0.965223]
[1724939076694,0.05083197,60365.0,60360.0,0.3608]
[1724939076882,0.05083197,60365.0,60348.0,0.965223]
[1724939076883,0.05083197,60366.0,60355.0,0.3608]
[1724939077195,0.082812,60356.0,60355.0,0.3608]
[1724939077590,0.082812,60356.0,60347.0,0.16156]
[1724939077591,0.082825,60348.0,60342.0,0.082831]
[1724939077794,0.05083197,60355.0,60345.0,0.3608]
[1724939077992,0.05083197,60355.0,60339.0,0.3608]
[1724939077993,0.082828,60345.0,60339.0,0.443635]
[1724939078296,0.23150344,60349.0,60339.0,0.3608]
[1724939078489,0.18067147,60348.0,60339.0,0.3608]
[1724939078689,0.0002485,60350.0,60344.0,0.3608]
[1724939078690,0.17967147,60349.0,60344.0,0.3608]
[1724939079285,0.13390147,60350.0,60344.0,0.3608]
[1724939079286,0.05108047,60350.0,60344.0,0.3608]
[1724939079491,0.082827,60345.0,60344.0,0.3608]
[1724939079691,0.13365897,60345.0,60344.0,0.3608]
[1724939080000,0.13365897,60345.0,60344.0,0.3618]
[1724939080992,0.05083197,60345.0,60344.0,0.3618]
[1724939082193,0.05083197,60345.0,60338.0,0.0002485]
[1724939082194,0.13365897,60345.0,60338.0,0.0002485]
[1724939082389,0.443636,60339.0,60338.0,0.0002485]
[1724939082695,0.49446797,60339.0,60338.0,0.0002485]
[1724939082901,0.13266797,60339.0,60338.0,0.0002485]
[1724939083198,0.21550397,60339.0,60338.0,0.0002485]
[1724939084197,1.14803197,60339.0,60327.0,0.3608]
[1724939084394,0.082851,60328.0,60327.0,0.3608]
[1724939084601,0.13368297,60328.0,60327.0,0.3608]
[1724939084798,0.13268297,60328.0,60327.0,0.3608]
[1724939086601,0.13268297,60328.0,60327.0,0.3618]
[1724939086998,0.13268297,60328.0,60327.0,0.3608]
[1724939087205,0.666982,60328.0,60327.0,0.001]
[1724939087395,0.71781397,60328.0,60327.0,0.001]
[1724939087813,0.22053397,60328.0,60327.0,0.001]
[1724939088117,0.081859,60322.0,60321.0,0.0002485]
[1724939088609,0.13269097,60322.0,60321.0,0.0002485]
[1724939088916,0.13269097,60322.0,60321.0,0.0831085]
[1724939089207,0.081859,60322.0,60321.0,0.0831085]
[1724939089707,0.081859,60322.0,60321.0,0.0002485]
[1724939089909,0.442659,60322.0,60321.0,0.0002485]
[1724939090214,0.21554997,60322.0,60321.0,0.0002485]
[1724939090406,0.524518,60322.0,60321.0,0.0002485]
[1724939090729,0.49249097,60322.0,60321.0,0.0002485]
[1724939091012,0.49749097,60322.0,60321.0,0.0002485]
[1724939091309,0.58034997,60322.0,60321.0,0.0002485]
[1724939091711,0.081871,60313.0,60310.0,0.082875]
[1724939092211,0.05083197,60314.0,60307.0,0.02410101]
[1724939092517,0.13373571,60317.0,60308.0,0.402878]
[1724939092704,0.13373571,60317.0,60315.0,0.082869]
[1724939092705,0.05086871,60316.0,60315.0,0.082869]
[1724939093209,0.13373071,60320.0,60319.0,0.082863]
[1724939093613,0.082865,60318.0,60316.0,0.082867]
[1724939093916,0.04986871,60317.0,60316.0,0.082867]
[1724939094104,0.00024869,60321.0,60320.0,0.082862]
[1724939094305,0.05111302,60321.0,60320.0,0.082862]
[1724939094507,0.00024869,60321.0,60320.0,0.082862]
[1724939095408,0.00824869,60321.0,60320.0,0.083862]
[1724939095617,0.09110869,60321.0,60320.0,0.10718526]
[1724939096011,0.09110869,60321.0,60320.0,0.001]
[1724939096405,0.17396869,60321.0,60320.0,0.001]
[1724939096814,0.09110869,60321.0,60320.0,0.001]
[1724939097006,0.09110869,60321.0,60320.0,0.083862]
[1724939097208,0.08310869,60321.0,60320.0,0.082862]
[1724939097404,0.09010869,60321.0,60320.0,0.083862]
[1724939097705,0.45090869,60321.0,60320.0,0.001]
[1724939097911,0.09010869,60321.0,60320.0,0.001]
[1724939098108,0.081865,60318.0,60316.0,0.082866]
[1724939098407,0.00824869,60321.0,60312.0,0.3608]
[1724939098611,0.082862,60320.0,60312.0,0.3608]
[1724939099013,0.081862,60320.0,60319.0,0.082863]
[1724939099909,0.00824869,60321.0,60320.0,0.082862]
[1724939100707,0.00050319,60321.0,60320.0,1.706746]
[1724939101315,0.5,60341.0,60340.0,0.082834]
[1724939101520,0.00108,60344.0,60340.0,0.443634]
[1724939101717,0.05084709,60347.0,60340.0,0.443634]
[1724939101912,0.05084709,60347.0,60341.0,0.082833]
[1724939102216,0.05084709,60347.0,60340.0,0.3608]
[1724939102217,0.3608,60348.0,60340.0,0.3608]
[1724939102406,0.05084249,60347.0,60340.0,0.3608]
[1724939102612,0.082829,60344.0,60340.0,0.3608]
[1724939102816,0.05084292,60347.0,60346.0,0.082826]
[1724939103020,0.00024869,60350.0,60346.0,0.082826]
[1724939103021,0.00024869,60350.0,60346.0,0.443626]
[1724939103318,0.00024869,60350.0,60349.0,0.833622]
[1724939103621,0.00024869,60350.0,60349.0,1.433622]
[1724939103820,0.00024869,60350.0,60349.0,1.930742]
[1724939104807,0.00024869,60350.0,60349.0,1.931742]
[1724939105113,0.00824869,60350.0,60349.0,1.931742]
[1724939105419,0.00824869,60350.0,60349.0,0.3618]
[1724939106020,0.18921481,60350.0,60349.0,0.941742]
[1724939106230,0.00824869,60350.0,60349.0,0.941742]
[1724939106518,0.00824869,60350.0,60349.0,1.931742]
[1724939107921,0.00824869,60350.0,60349.0,2.090022]
[1724939108121,0.00824869,60350.0,60349.0,0.992902]
[1724939108420,0.00824869,60350.0,60349.0,0.3618]
[1724939108718,0.00824869,60350.0,60349.0,0.52008]
[1724939109212,0.00824869,60350.0,60349.0,2.090022]
[1724939109723,0.00824869,60350.0,60349.0,2.172844]
[1724939110525,0.18096612,60358.0,60357.0,0.165622]
[1724939110714,0.16442955,60366.0,60365.0,0.0828]
[1724939110916,0.086677,60382.0,60365.0,0.0828]
[1724939110917,0.0508164,60376.0,60365.0,1.7751]
[1724939111114,0.18072636,60384.0,60382.0,0.39]
[1724939111316,0.087259,60396.0,60382.0,0.39]
[1724939111317,0.0508125,60387.0,60383.0,0.51908]
[1724939111522,0.0508125,60387.0,60377.0,0.00024848]
[1724939111523,0.1806651,60386.0,60377.0,0.00024848]
[1724939111715,0.526364,60378.0,60377.0,0.00024848]
[1724939111919,0.5771765,60378.0,60377.0,1e-08]
[1724939112220,0.5771765,60378.0,60365.0,0.001]
[1724939112221,0.082799,60366.0,60365.0,0.001]
[1724939112926,0.082799,60366.0,60363.0,0.15828]
[1724939113316,0.082799,60366.0,60363.0,0.15824]
[1724939113619,0.082807,60360.0,60358.0,0.00024848]
[1724939113818,0.082802,60364.0,60358.0,0.00024848]
[1724939114027,0.082802,60364.0,60359.0,0.51904]
[1724939114327,0.082803,60363.0,60359.0,0.51904]
[1724939114523,0.081806,60361.0,60359.0,0.51904]
[1724939115327,0.165616,60359.0,60358.0,0.00024848]
[1724939115631,0.5772285,60359.0,60358.0,0.00024848]
[1724939115823,0.082821,60350.0,60349.0,3.695]
[1724939116119,1.125442,60350.0,60349.0,2.97715237]
[1724939116320,1.622562,60350.0,60349.0,2.97715237]
[1724939116512,2.1733745,60350.0,60349.0,2.97715237]
[1724939116716,2.23279205,60350.0,60349.0,2.97715237]
[1724939117114,1.63279205,60350.0,60349.0,2.97715237]
[1724939117322,2.23279205,60350.0,60349.0,2.97715237]
[1724939117922,0.6326335,60350.0,60349.0,2.97715237]
[1724939118522,0.6326335,60350.0,60349.0,2.97815237]
[1724939118821,0.3608,60353.0,60351.0,0.082818]
[1724939119028,0.08306148,60356.0,60351.0,0.082818]
[1724939119327,0.00024848,60356.0,60354.0,0.082815]
[1724939119629,0.00024848,60356.0,60355.0,0.082814]
[1724939120218,0.00024848,60356.0,60350.0,0.443619]
[1724939120414,0.00024848,60356.0,60350.0,0.3608]
[1724939120624,0.082821,60350.0,60349.0,2.97899237]
[1724939120835,0.082821,60350.0,60349.0,2.79503037]
[1724939120836,0.443621,60350.0,60349.0,2.79503037]
[1724939121130,1.67439636,60350.0,60349.0,2.79503037]
[1724939121334,2.23379468,60350.0,60349.0,2.79503037]
[1724939121520,2.15097368,60350.0,60349.0,2.79503037]
[1724939121724,1.63379468,60350.0,60349.0,2.79503037]
[1724939121918,2.15097368,60350.0,60349.0,2.79503037]
[1724939122134,0.5,60350.0,60349.0,3.15483037]
[1724939122323,0.05083891,60350.0,60349.0,3.23865237]
[1724939122633,0.00024848,60356.0,60355.0,0.082814]
[1724939122821,0.00024848,60356.0,60355.0,0.443614]
[1724939124033,1e-08,60356.0,60355.0,1.623468]
[1724939124232,0.18061845,60375.0,60355.0,1.623468]
[1724939124233,0.082791,60372.0,60365.0,0.082799]
[1724939124426,0.18061845,60373.0,60366.0,0.51908]
[1724939124632,0.082801,60365.0,60361.0,0.3608]
[1724939124829,0.05083891,60367.0,60364.0,0.0828]
[1724939125029,0.0828,60366.0,60361.0,0.3608]
[1724939125339,0.0828,60365.0,60361.0,0.3608]
[1724939125521,0.3608,60368.0,60361.0,0.3608]
[1724939125835,0.443596,60368.0,60362.0,0.082804]
[1724939126236,0.00024848,60370.0,60367.0,0.3608]
[1724939126531,0.00024848,60370.0,60369.0,0.082794]
[1724939126921,0.00024848,60370.0,60369.0,0.579714]
[1724939127531,0.00024848,60370.0,60369.0,0.082794]
[1724939127730,0.00024848,60370.0,60369.0,0.579714]
[1724939128427,1e-08,60370.0,60369.0,1.179714]
[1724939128637,1e-08,60370.0,60369.0,1.540514]
[1724939128829,1e-08,60370.0,60369.0,1.707102]
[1724939129028,0.0508072,60391.0,60369.0,1.45872]
[1724939129336,0.00116,60392.0,60390.0,0.3608]
[1724939129532,0.0508022,60396.0,60390.0,0.3608]
[1724939129737,0.0508022,60396.0,60395.0,0.443559]
[1724939129935,0.00024848,60402.0,60395.0,0.3608]
[1724939130137,0.082759,60395.0,60393.0,0.16064]
[1724939130344,0.3608,60397.0,60389.0,0.36188848]
[1724939130634,0.082764,60392.0,60389.0,0.52168848]
[1724939130838,0.082764,60392.0,60389.0,0.36104848]
[1724939131132,0.082766,60390.0,60389.0,0.00024848]
[1724939131332,0.2163357,60390.0,60389.0,0.00024848]
[1724939131540,1.9381957,60390.0,60389.0,1e-08]
[1724939131723,1.4381957,60390.0,60389.0,1e-08]
[1724939132027,0.7586697,60390.0,60389.0,1e-08]
[1724939132228,1.3381957,60390.0,60389.0,1e-08]
[1724939132435,1.3975683,60390.0,60389.0,1e-08]
[1724939132643,1.9975683,60390.0,60389.0,1e-08]
[1724939132822,1.3975683,60390.0,60389.0,0.00100001]
[1724939133027,1.9975683,60390.0,60389.0,0.00075155]
[1724939133741,1.8320363,60390.0,60389.0,0.001]
[1724939134037,1.9975683,60390.0,60389.0,0.001]
[1724939135228,2.0803343,60390.0,60389.0,0.001]
[1724939135430,0.082774,60384.0,60383.0,0.00024848]
[1724939135638,0.443574,60384.0,60383.0,0.00024848]
[1724939135828,0.1335777,60384.0,60383.0,0.00024848]
[1724939136025,0.082774,60384.0,60383.0,0.08302348]
[1724939136230,0.165548,60384.0,60383.0,0.00024848]
[1724939136535,1.3131917,60384.0,60383.0,0.00020848]
[1724939136839,1.8141917,60384.0,60383.0,0.00120848]
[1724939137136,1.87356226,60384.0,60383.0,0.00120848]
[1724939137943,1.79078826,60384.0,60383.0,0.00120848]
[1724939138237,0.37479082,60384.0,60383.0,0.00120848]
[1724939138435,0.1345777,60384.0,60383.0,0.00120848]
[1724939138628,0.083774,60384.0,60383.0,0.08398348]
[1724939138936,0.26461656,60384.0,60383.0,0.08398348]
[1724939139431,0.083774,60384.0,60383.0,0.08398348]
[1724939139631,0.444574,60384.0,60383.0,0.08398348]
[1724939139839,0.081797,60367.0,60366.0,0.02376299]
[1724939140232,0.082792,60371.0,60370.0,0.082792]
[1724939140425,0.73166213,60377.0,60366.0,0.02376299]
[1724939140636,0.082793,60371.0,60370.0,0.082793]
[1724939141036,0.082798,60367.0,60365.0,0.082799]
[1724939141339,0.082798,60367.0,60366.0,0.082799]
[1724939141537,0.082791,60372.0,60364.0,0.00024848]
[1724939141740,0.00024848,60377.0,60374.0,0.082786]
[1724939141941,0.00024848,60377.0,60376.0,0.443585]
[1724939143737,0.00024848,60377.0,60371.0,0.1606]
[1724939143947,0.16558,60372.0,60371.0,0.1606]
[1724939144336,0.082797,60367.0,60366.0,0.3608]
[1724939144740,0.081797,60367.0,60366.0,0.3608]
[1724939145341,0.080797,60367.0,60366.0,0.3608]
[1724939146134,0.080797,60367.0,60364.0,0.00024848]
[1724939146135,0.443597,60367.0,60364.0,0.00024848]
[1724939146340,0.6092,60365.0,60364.0,0.00024848]
[1724939146545,0.082821,60350.0,60343.0,0.0039]
[1724939146733,0.082821,60350.0,60341.0,0.443633]
[1724939146734,0.443621,60350.0,60341.0,0.443633]
[1724939147045,0.082823,60348.0,60341.0,0.444473]
[1724939147242,0.3608,60350.0,60341.0,0.3608]
[1724939147449,0.082833,60341.0,60337.0,0.0616]
[1724939147740,0.082834,60340.0,60337.0,0.0616]
[1724939147948,0.082834,60340.0,60334.0,0.3608]
[1724939147949,0.082836,60339.0,60333.0,0.00024848]
[1724939148137,0.3608,60338.0,60333.0,0.00024848]
[1724939148648,0.3608,60338.0,60335.0,0.082841]
[1724939148848,0.00108,60343.0,60335.0,0.3608]
[1724939149142,0.00024848,60345.0,60344.0,0.082829]
[1724939149356,0.5,60360.0,60344.0,0.3608]
[1724939149538,0.3608,60358.0,60345.0,0.0628]
[1724939149740,0.082808,60360.0,60353.0,0.082816]
[1724939149938,0.3608,60358.0,60350.0,0.3608]
[1724939150243,0.3608,60358.0,60349.0,0.39]
[1724939150439,0.00024848,60360.0,60355.0,0.3608]
[1724939151041,0.00024848,60360.0,60356.0,0.082812]
[1724939151639,0.00024848,60360.0,60359.0,0.082808]
[1724939151844,0.3257,60380.0,60359.0,0.082808]
[1724939151845,0.5,60374.0,60367.0,0.082797]
[1724939152037,0.0045,60384.0,60359.0,0.25657674]
[1724939152038,0.18085843,60384.0,60377.0,0.082783]
[1724939152239,0.082772,60386.0,60382.0,0.3608]
[1724939152240,0.16460212,60383.0,60382.0,0.3608]
[1724939152535,0.082775,60383.0,60379.0,0.1606]
[1724939152743,0.082784,60377.0,60373.0,0.3608]
[1724939152941,0.05081217,60380.0,60374.0,0.39]
[1724939153143,0.16489062,60384.0,60379.0,0.44358]
[1724939153144,0.00024848,60384.0,60379.0,0.44358]
[1724939154050,0.00024848,60384.0,60383.0,0.082775]
[1724939154344,1e-08,60384.0,60383.0,0.243375]
[1724939154549,0.05081217,60398.0,60392.0,0.082763]
[1724939154736,0.05081217,60398.0,60383.0,1.25744]
[1724939154737,0.082757,60396.0,60395.0,0.3608]
[1724939155149,0.13356917,60396.0,60395.0,0.3608]
[1724939156148,0.05081217,60396.0,60395.0,0.3608]
[1724939156347,0.00024848,60402.0,60395.0,0.3608]
[1724939156348,0.05081217,60397.0,60395.0,0.3608]
[1724939156547,0.096757,60396.0,60395.0,0.3618]
[1724939156844,0.14756917,60396.0,60395.0,0.3618]
[1724939158245,0.64428917,60396.0,60395.0,0.3618]
[1724939158452,0.13356917,60396.0,60395.0,0.3618]
[1724939158653,0.63028917,60396.0,60395.0,0.3618]
[1724939159147,0.14056917,60396.0,60395.0,0.3618]
[1724939159539,0.007,60396.0,60395.0,0.3618]
[1724939159746,0.007,60396.0,60395.0,0.444559]
[1724939160749,0.007,60396.0,60395.0,0.3618]
[1724939160957,0.007,60396.0,60395.0,0.444559]
[1724939161350,0.05081217,60399.0,60398.0,0.082755]
[1724939161550,0.18090142,60399.0,60398.0,0.082755]
[1724939161746,0.00024848,60402.0,60399.0,0.082753]
[1724939161747,0.18090142,60400.0,60399.0,0.082753]
[1724939161951,1e-08,60402.0,60401.0,0.082751]
[1724939162257,0.16427446,60411.0,60410.0,0.082738]
[1724939162450,0.05081217,60414.0,60413.0,0.082734]
[1724939162644,0.05081217,60414.0,60410.0,0.3608]
[1724939162645,0.05081217,60417.0,60414.0,0.082732]
[1724939162959,0.24700246,60418.0,60415.0,0.3608]
[1724939163167,0.08273,60416.0,60415.0,0.3608]
[1724939163656,0.24700446,60416.0,60415.0,0.3608]
[1724939163852,0.08273,60416.0,60415.0,0.3608]
[1724939164159,0.16427446,60419.0,60415.0,0.3608]
[1724939164364,0.16427446,60421.0,60415.0,0.3608]
[1724939164671,0.082727,60419.0,60415.0,0.3608]
[1724939164959,0.16427446,60420.0,60415.0,0.3608]
[1724939165263,0.50024827,60423.0,60420.0,0.082724]
[1724939165264,0.21505397,60422.0,60420.0,0.082724]
[1724939165465,0.08296927,60423.0,60420.0,0.082724]
[1724939165963,0.00024827,60423.0,60422.0,0.082722]
[1724939167158,0.00024827,60423.0,60410.0,0.00024827]
[1724939167159,0.082737,60411.0,60410.0,0.00024827]
[1724939167664,0.165474,60411.0,60410.0,0.00024827]
[1724939167869,0.582732,60415.0,60410.0,0.00024827]
[1724939168062,0.3608,60416.0,60410.0,0.00024827]
[1724939168266,0.5,60414.0,60410.0,0.00024827]
[1724939168566,0.3608,60416.0,60410.0,0.00024827]
[1724939168764,0.05078479,60415.0,60410.0,0.00024827]
[1724939168957,0.082733,60414.0,60410.0,0.08298527]
[1724939169158,0.082733,60414.0,60410.0,0.08398527]
[1724939169359,0.05078479,60417.0,60413.0,0.082734]
[1724939170058,0.08273,60416.0,60410.0,0.00124827]
[1724939170267,0.05078551,60417.0,60412.0,0.3608]
[1724939170567,0.24699746,60421.0,60412.0,0.3608]
[1724939170871,0.21505997,60422.0,60419.0,0.443525]
[1724939171065,0.08273,60417.0,60412.0,0.3608]
[1724939171269,0.082725,60420.0,60412.0,0.3608]
[1724939171566,0.16427446,60421.0,60419.0,0.082725]
[1724939171766,0.16427446,60422.0,60420.0,0.082724]
[1724939171969,0.00024827,60423.0,60419.0,0.3608]
[1724939172164,0.00024827,60423.0,60419.0,0.4206]
[1724939172360,0.00024827,60423.0,60422.0,0.082722]
[1724939173471,0.00224827,60423.0,60422.0,0.083722]
[1724939174570,0.00224827,60423.0,60422.0,0.001]
[1724939174761,0.00224827,60423.0,60422.0,0.083722]
[1724939175362,0.00024827,60423.0,60422.0,0.082722]
[1724939175564,0.00124827,60423.0,60422.0,0.001]
[1724939175965,0.00124827,60423.0,60422.0,0.083722]
[1724939177366,0.08396827,60423.0,60422.0,0.083722]
[1724939177667,0.08396827,60423.0,60422.0,0.001]
[1724939178464,0.16477338,60423.0,60422.0,0.083722]
[1724939178668,0.00124827,60423.0,60422.0,0.083722]
[1724939179074,0.00124827,60423.0,60422.0,0.166444]
[1724939179468,0.16352511,60424.0,60423.0,0.16544]
[1724939179668,0.16387444,60427.0,60426.0,0.082716]
[1724939179870,0.18090142,60435.0,60429.0,0.082712]
[1724939179871,0.16387444,60430.0,60429.0,0.082712]
[1724939180074,0.16387444,60430.0,60429.0,0.472712]
[1724939180267,0.05077228,60434.0,60429.0,0.39]
[1724939180473,0.16387444,60436.0,60433.0,0.3608]
[1724939180666,0.082705,60435.0,60433.0,0.3608]
[1724939180868,0.082705,60435.0,60433.0,0.443507]
[1724939181169,0.16387444,60436.0,60435.0,0.082704]
[1724939181371,0.00016058,60438.0,60437.0,0.082701]
[1724939181569,0.00016058,60438.0,60437.0,0.472701]
[1724939181774,0.18090142,60441.0,60440.0,0.082697]
[1724939182070,0.18057425,60443.0,60442.0,0.082694]
[1724939182274,0.18057425,60446.0,60445.0,0.08269]
[1724939182475,0.18057425,60447.0,60446.0,0.082689]
[1724939182876,0.34469456,60447.0,60446.0,0.082689]
[1724939183178,0.08267,60460.0,60448.0,0.082686]
[1724939183179,0.16399691,60449.0,60448.0,0.082686]
[1724939183377,0.16399691,60450.0,60449.0,0.082685]
[1724939183686,0.05074779,60453.0,60452.0,0.082681]
[1724939183979,0.16399691,60458.0,60457.0,0.082674]
[1724939184174,0.34457116,60463.0,60457.0,0.52248]
[1724939184377,0.18057425,60467.0,60462.0,0.3608]
[1724939184569,0.05074183,60469.0,60463.0,0.082666]
[1724939184976,0.05074183,60469.0,60463.0,0.472666]
[1724939185169,0.5,60474.0,60467.0,0.3608]
[1724939185470,0.582654,60472.0,60467.0,0.3608]
[1724939185884,0.082654,60472.0,60467.0,0.3608]
[1724939186182,0.082659,60468.0,60467.0,0.3608]
[1724939186382,0.082671,60460.0,60458.0,0.00024806]
[1724939186590,0.08267,60460.0,60458.0,0.00024806]
[1724939186786,0.5,60467.0,60458.0,0.00024806]
[1724939186981,0.082666,60463.0,60458.0,0.00024806]
[1724939187189,0.082659,60468.0,60462.0,0.39]
[1724939187485,0.082659,60468.0,60462.0,0.472667]
[1724939187689,0.082659,60468.0,60465.0,0.3608]
[1724939187880,0.082662,60466.0,60465.0,0.3608]
[1724939188080,0.082662,60466.0,60462.0,0.39]
[1724939188081,0.082664,60464.0,60463.0,0.16164]
[1724939188278,0.082668,60461.0,60460.0,0.3608]
[1724939189191,0.081668,60461.0,60460.0,0.3608]
[1724939189595,0.082671,60459.0,60458.0,0.00024806]
[1724939189891,0.526142,60459.0,60458.0,0.00024806]
[1724939190095,0.526142,60459.0,60438.0,0.0629]
[1724939190096,0.081693,60443.0,60428.0,0.3608]
[1724939190283,0.081693,60443.0,60424.0,0.0039]
[1724939190284,0.082712,60429.0,60424.0,0.0039]
[1724939190481,0.082712,60429.0,60424.0,0.3608]
[1724939190482,0.082713,60429.0,60424.0,0.3608]
[1724939190789,0.25484969,60442.0,60424.0,0.3608]
[1724939190790,0.082696,60441.0,60428.0,0.39]
[1724939190993,0.082696,60441.0,60419.0,0.0629]
[1724939190994,0.5,60441.0,60439.0,0.3608]
[1724939191196,0.00024737,60441.0,60439.0,0.3608]
[1724939191983,0.00024737,60441.0,60439.0,0.443498]
[1724939192990,0.00324737,60441.0,60439.0,0.444498]
[1724939193587,0.16727928,60441.0,60440.0,0.082697]
[1724939193781,0.003,60441.0,60440.0,0.082697]
[1724939193986,0.16402361,60441.0,60440.0,1.09636]
[1724939194187,0.05076059,60447.0,60440.0,1.09636]
[1724939194401,0.16402361,60448.0,60446.0,0.3608]
[1724939194785,0.05076059,60455.0,60450.0,0.082684]
[1724939194786,0.16402361,60451.0,60450.0,0.082684]
[1724939195089,0.23095233,60454.0,60446.0,0.3608]
[1724939195288,0.3608,60456.0,60447.0,0.16224]
[1724939195289,0.1640341,60448.0,60447.0,0.16224]
[1724939195492,0.18019174,60450.0,60447.0,0.16224]
[1724939195685,0.18019174,60450.0,60449.0,0.082685]
[1724939195881,0.16403292,60450.0,60447.0,0.65852]
[1724939196089,0.05076059,60453.0,60449.0,0.082685]
[1724939196384,0.05076059,60452.0,60446.0,0.36276]
[1724939196584,0.004,60454.0,60446.0,0.3618]
[1724939196585,0.05076059,60451.0,60446.0,0.3618]
[1724939196785,0.05076059,60450.0,60446.0,0.3618]
[1724939196987,0.18042335,60448.0,60446.0,0.3618]
[1724939197292,0.18042335,60451.0,60450.0,0.082684]
[1724939197491,0.004,60454.0,60451.0,0.082682]
[1724939197695,0.004,60454.0,60452.0,0.08268]
[1724939198197,0.004,60454.0,60453.0,0.082679]
[1724939198392,0.004,60454.0,60451.0,0.75164]
[1724939198593,0.16407194,60452.0,60451.0,0.7508]
[1724939198793,0.16407194,60452.0,60451.0,0.833482]
[1724939198996,0.16407194,60454.0,60451.0,0.833482]
[1724939199196,0.16407194,60453.0,60451.0,0.833482]
[1724939199496,0.16307194,60452.0,60451.0,0.833482]
[1724939199891,0.05074961,60457.0,60453.0,0.082679]
[1724939200086,0.180421,60459.0,60453.0,0.082679]
[1724939200087,0.082673,60458.0,60453.0,0.082679]
[1724939200892,0.082673,60458.0,60454.0,0.082678]
[1724939201402,0.04048723,60457.0,60454.0,0.082678]
[1724939201700,0.04048723,60457.0,60451.0,0.75276]
[1724939201701,0.04048723,60456.0,60455.0,0.082677]
[1724939201886,0.14781535,60458.0,60456.0,0.082675]
[1724939202091,0.18830258,60459.0,60457.0,0.39]
[1724939202290,0.04048653,60458.0,60457.0,0.472674]
[1724939202491,0.04148653,60458.0,60457.0,0.472674]